[Event "Titled Tuesday Blitz October 25 Late 2022"]
[White "Marcolino, Daniel Mattos"]
[Black "Rengifo Blancas, Renzo Jhonathan"]
[WhiteFideId "2106841"]
[BlackFideId "3807185"]
[WhiteElo "2089"]
[BlackElo "2058"]
[Result "1-0"]
[Round "05"]
[TimeControl "180+1"]
[Date "2022.10.26"]
[WhiteClock "0:00:08"]
[BlackClock "0:01:20"]

1. d4 {[%clk 0:03:00]}  d6 {[%clk 0:03:00]} 2. Nf3 {[%clk 0:03:00]}  Nf6 {[%clk 0:02:57]} 3. g3 {[%clk 0:02:59]}  g6 {[%clk 0:02:57]} 4. Bg2 {[%clk 0:03:00]}  Bg7 {[%clk 0:02:58]} 5. O-O {[%clk 0:03:00]}  O-O {[%clk 0:02:58]} 6. b3 {[%clk 0:03:01]}  Re8 {[%clk 0:02:57]} 7. Bb2 {[%clk 0:03:01]}  Nbd7 {[%clk 0:02:58]} 8. Re1 {[%clk 0:03:01]}  c6 {[%clk 0:02:59]} 9. e4 {[%clk 0:02:58]}  e5 {[%clk 0:03:00]} 10. dxe5 {[%clk 0:02:57]}  dxe5 {[%clk 0:03:01]} 11. Nxe5 {[%clk 0:02:55]}  Ng4 {[%clk 0:02:57]} 12. Nxf7 {[%clk 0:02:45]}  Qb6 {[%clk 0:02:35]} 13. Bxg7 {[%clk 0:02:10]}  Nxf2 {[%clk 0:02:22]} 14. Qd4 {[%clk 0:02:01]}  Kxf7 {[%clk 0:02:22]} 15. Kxf2 {[%clk 0:01:54]}  c5 {[%clk 0:02:15]} 16. Qb2 {[%clk 0:01:45]}  Kg8 {[%clk 0:01:54]} 17. Nd2 {[%clk 0:01:27]}  Re7 {[%clk 0:01:54]} 18. Nc4 {[%clk 0:01:13]}  Qc7 {[%clk 0:01:52]} 19. Bc3 {[%clk 0:01:09]}  b5 {[%clk 0:01:52]} 20. Ne3 {[%clk 0:01:04]}  b4 {[%clk 0:01:52]} 21. Nd5 {[%clk 0:00:40]}  bxc3 {[%clk 0:01:52]} 22. Nxe7+ {[%clk 0:00:40]}  Kf7 {[%clk 0:01:51]} 23. Qxc3 {[%clk 0:00:37]}  Kxe7 {[%clk 0:01:52]} 24. Qg7+ {[%clk 0:00:36]}  Ke8 {[%clk 0:01:51]} 25. Rad1 {[%clk 0:00:33]}  Rb8 {[%clk 0:01:46]} 26. Bh3 {[%clk 0:00:20]}  c4 {[%clk 0:01:44]} 27. Rd5 {[%clk 0:00:16]}  Qb6+ {[%clk 0:01:41]} 28. Kg2 {[%clk 0:00:16]}  Rb7 {[%clk 0:01:38]} 29. Qg8+ {[%clk 0:00:16]}  Nf8 {[%clk 0:01:36]} 30. Bxc8 {[%clk 0:00:14]}  Re7 {[%clk 0:01:35]} 31. Red1 {[%clk 0:00:08]}  Rxe4 {[%clk 0:01:21]} 32. Rd8+ {[%clk 0:00:08]}  Ke7 {[%clk 0:01:20]} 33. Qxf8# {[%clk 0:00:08]} 1-0


[Site "https://www.chess.com"]

[Event "Titled Tuesday Blitz October 25 Late 2022"]
[White "Martinez Alcantara, Jose Eduardo"]
[Black "Dardha, Daniel"]
[WhiteFideId "3805662"]
[BlackFideId "240990"]
[WhiteElo "2703"]
[BlackElo "2528"]
[Result "1-0"]
[Round "05"]
[TimeControl "180+1"]
[Date "2022.10.26"]
[WhiteClock "0:00:37"]
[BlackClock "0:00:15"]

1. e4 {[%clk 0:03:00]}  e5 {[%clk 0:02:59]} 2. Nf3 {[%clk 0:03:00]}  Nc6 {[%clk 0:03:00]} 3. Bb5 {[%clk 0:03:01]}  Nf6 {[%clk 0:02:59]} 4. Qe2 {[%clk 0:03:01]}  Bd6 {[%clk 0:02:59]} 5. c3 {[%clk 0:03:00]}  O-O {[%clk 0:02:59]} 6. d3 {[%clk 0:03:01]}  a6 {[%clk 0:02:53]} 7. Ba4 {[%clk 0:03:00]}  Re8 {[%clk 0:02:50]} 8. h3 {[%clk 0:02:58]}  b5 {[%clk 0:02:44]} 9. Bb3 {[%clk 0:02:58]}  Na5 {[%clk 0:02:45]} 10. Bc2 {[%clk 0:02:58]}  c5 {[%clk 0:02:44]} 11. Nbd2 {[%clk 0:02:58]}  Bc7 {[%clk 0:02:43]} 12. Nf1 {[%clk 0:02:58]}  d5 {[%clk 0:02:38]} 13. Bg5 {[%clk 0:02:57]}  d4 {[%clk 0:02:30]} 14. Ng3 {[%clk 0:02:46]}  h6 {[%clk 0:02:30]} 15. Bh4 {[%clk 0:02:47]}  g5 {[%clk 0:02:25]} 16. Nxg5 {[%clk 0:02:47]}  hxg5 {[%clk 0:02:26]} 17. Bxg5 {[%clk 0:02:48]}  Qd6 {[%clk 0:02:26]} 18. Bd2 {[%clk 0:02:31]}  Nc6 {[%clk 0:02:22]} 19. O-O {[%clk 0:02:29]}  dxc3 {[%clk 0:02:21]} 20. bxc3 {[%clk 0:02:29]}  b4 {[%clk 0:02:19]} 21. Ba4 {[%clk 0:02:24]}  bxc3 {[%clk 0:02:12]} 22. Bxc3 {[%clk 0:02:24]}  Rd8 {[%clk 0:02:05]} 23. Qf3 {[%clk 0:02:13]}  Nd4 {[%clk 0:02:03]} 24. Bxd4 {[%clk 0:02:13]}  cxd4 {[%clk 0:01:58]} 25. Rac1 {[%clk 0:02:11]}  Nh7 {[%clk 0:01:39]} 26. Bb3 {[%clk 0:01:57]}  Qe7 {[%clk 0:01:26]} 27. Rc6 {[%clk 0:01:30]}  Bd6 {[%clk 0:01:20]} 28. Nf5 {[%clk 0:01:24]}  Bxf5 {[%clk 0:01:20]} 29. Qxf5 {[%clk 0:01:25]}  Qf6 {[%clk 0:01:16]} 30. Qh5 {[%clk 0:01:20]}  Kg7 {[%clk 0:01:10]} 31. Bd5 {[%clk 0:01:10]}  Rab8 {[%clk 0:01:07]} 32. Rxa6 {[%clk 0:01:08]}  Rb2 {[%clk 0:01:07]} 33. Ra7 {[%clk 0:01:06]}  Rf8 {[%clk 0:01:05]} 34. a4 {[%clk 0:01:00]}  Ng5 {[%clk 0:00:57]} 35. Qg4 {[%clk 0:00:59]}  Kh6 {[%clk 0:00:54]} 36. Qh4+ {[%clk 0:00:54]}  Kg6 {[%clk 0:00:52]} 37. Qg4 {[%clk 0:00:55]}  Kh6 {[%clk 0:00:42]} 38. Ra6 {[%clk 0:00:55]}  Rd8 {[%clk 0:00:37]} 39. a5 {[%clk 0:00:52]}  Rg8 {[%clk 0:00:31]} 40. Kh1 {[%clk 0:00:48]}  Rg6 {[%clk 0:00:28]} 41. Rb6 {[%clk 0:00:46]}  Rxf2 {[%clk 0:00:26]} 42. Qh4+ {[%clk 0:00:46]}  Kg7 {[%clk 0:00:25]} 43. Qxf2 {[%clk 0:00:46]}  Qe7 {[%clk 0:00:20]} 44. Rb7 {[%clk 0:00:46]}  Bc7 {[%clk 0:00:20]} 45. Qc2 {[%clk 0:00:39]}  Nxh3 {[%clk 0:00:19]} 46. Rxf7+ {[%clk 0:00:36]}  Qxf7 {[%clk 0:00:17]} 47. Bxf7 {[%clk 0:00:37]}  Rc6 {[%clk 0:00:15]} 1-0


[Site "https://www.chess.com"]

[Event "Titled Tuesday Blitz October 25 Late 2022"]
[White "Matinian, Nikita"]
[Black "Kisic, Bozidar"]
[WhiteFideId "24129100"]
[BlackFideId "16500350"]
[WhiteElo "2422"]
[BlackElo "2233"]
[Result "1-0"]
[Round "05"]
[TimeControl "180+1"]
[Date "2022.10.26"]
[WhiteClock "0:01:33"]
[BlackClock "0:00:33"]

1. e4 {[%clk 0:03:00]}  g6 {[%clk 0:02:58]} 2. d4 {[%clk 0:03:01]}  Bg7 {[%clk 0:02:58]} 3. Nc3 {[%clk 0:03:01]}  a6 {[%clk 0:02:58]} 4. g4 {[%clk 0:03:02]}  d6 {[%clk 0:02:58]} 5. Bg2 {[%clk 0:03:01]}  Nc6 {[%clk 0:02:45]} 6. d5 {[%clk 0:02:54]}  Nd4 {[%clk 0:02:33]} 7. Be3 {[%clk 0:02:53]}  c5 {[%clk 0:02:33]} 8. dxc6 {[%clk 0:02:54]}  Nxc6 {[%clk 0:02:33]} 9. h3 {[%clk 0:02:54]}  Nf6 {[%clk 0:02:27]} 10. Nge2 {[%clk 0:02:51]}  h5 {[%clk 0:02:24]} 11. g5 {[%clk 0:02:51]}  Nd7 {[%clk 0:02:23]} 12. f4 {[%clk 0:02:51]}  Qa5 {[%clk 0:02:21]} 13. Qd2 {[%clk 0:02:48]}  Nb6 {[%clk 0:02:08]} 14. b3 {[%clk 0:02:45]}  O-O {[%clk 0:02:03]} 15. O-O {[%clk 0:02:41]}  Bd7 {[%clk 0:01:55]} 16. Rad1 {[%clk 0:02:41]}  Rac8 {[%clk 0:01:50]} 17. Nd5 {[%clk 0:02:33]}  Qxd2 {[%clk 0:01:49]} 18. Rxd2 {[%clk 0:02:34]}  Nxd5 {[%clk 0:01:48]} 19. exd5 {[%clk 0:02:35]}  Nd8 {[%clk 0:01:30]} 20. c4 {[%clk 0:02:25]}  b5 {[%clk 0:01:29]} 21. cxb5 {[%clk 0:02:26]}  Bxb5 {[%clk 0:01:24]} 22. Re1 {[%clk 0:02:26]}  Nb7 {[%clk 0:01:18]} 23. Nd4 {[%clk 0:02:26]}  Nc5 {[%clk 0:01:14]} 24. Nc6 {[%clk 0:02:20]}  Bxc6 {[%clk 0:01:09]} 25. dxc6 {[%clk 0:02:18]}  Ne6 {[%clk 0:01:03]} 26. Rc1 {[%clk 0:02:13]}  Rfd8 {[%clk 0:00:52]} 27. Bb6 {[%clk 0:02:06]}  Nc7 {[%clk 0:00:51]} 28. Bf1 {[%clk 0:02:01]}  e5 {[%clk 0:00:46]} 29. Bxa6 {[%clk 0:01:44]}  Nxa6 {[%clk 0:00:46]} 30. Bxd8 {[%clk 0:01:44]}  Rxd8 {[%clk 0:00:47]} 31. c7 {[%clk 0:01:45]}  Rc8 {[%clk 0:00:47]} 32. Rxd6 {[%clk 0:01:45]}  Rxc7 {[%clk 0:00:48]} 33. Rd8+ {[%clk 0:01:40]}  Kh7 {[%clk 0:00:45]} 34. Rxc7 {[%clk 0:01:41]}  Nxc7 {[%clk 0:00:46]} 35. Rd7 {[%clk 0:01:40]}  Ne6 {[%clk 0:00:45]} 36. fxe5 {[%clk 0:01:36]}  Nxg5 {[%clk 0:00:45]} 37. a4 {[%clk 0:01:35]}  Nf3+ {[%clk 0:00:44]} 38. Kg2 {[%clk 0:01:34]}  Nxe5 {[%clk 0:00:45]} 39. Rc7 {[%clk 0:01:34]}  g5 {[%clk 0:00:42]} 40. a5 {[%clk 0:01:34]}  f5 {[%clk 0:00:35]} 41. a6 {[%clk 0:01:34]}  f4 {[%clk 0:00:35]} 42. a7 {[%clk 0:01:34]}  g4 {[%clk 0:00:33]} 43. a8=Q {[%clk 0:01:33]}  f3+ {[%clk 0:00:33]} 44. Kf1 {[%clk 0:01:33]} 1-0


[Site "https://www.chess.com"]

[Event "Titled Tuesday Blitz October 25 Late 2022"]
[White "Mickiewicz, Piotr"]
[Black "Levine, David"]
[WhiteFideId "1114891"]
[BlackFideId "2011611"]
[WhiteElo "2246"]
[BlackElo "2227"]
[Result "1-0"]
[Round "05"]
[TimeControl "180+1"]
[Date "2022.10.26"]
[WhiteClock "0:01:53"]
[BlackClock "0:01:31"]

1. Nf3 {[%clk 0:03:00]}  Nf6 {[%clk 0:02:59]} 2. b3 {[%clk 0:02:55]}  g6 {[%clk 0:02:57]} 3. Bb2 {[%clk 0:02:56]}  Bg7 {[%clk 0:02:57]} 4. c4 {[%clk 0:02:54]}  O-O {[%clk 0:02:56]} 5. e3 {[%clk 0:02:55]}  d6 {[%clk 0:02:56]} 6. Be2 {[%clk 0:02:54]}  e5 {[%clk 0:02:54]} 7. d3 {[%clk 0:02:54]}  Nc6 {[%clk 0:02:50]} 8. O-O {[%clk 0:02:49]}  h6 {[%clk 0:02:49]} 9. a3 {[%clk 0:02:47]}  a5 {[%clk 0:02:31]} 10. Nbd2 {[%clk 0:02:45]}  Be6 {[%clk 0:02:28]} 11. Qc2 {[%clk 0:02:44]}  Qd7 {[%clk 0:02:26]} 12. Bc3 {[%clk 0:02:39]}  Nh5 {[%clk 0:02:12]} 13. b4 {[%clk 0:02:36]}  f5 {[%clk 0:02:08]} 14. b5 {[%clk 0:02:35]}  Ne7 {[%clk 0:02:06]} 15. Qb2 {[%clk 0:02:23]}  Bf7 {[%clk 0:02:03]} 16. a4 {[%clk 0:02:11]}  g5 {[%clk 0:02:01]} 17. Nb3 {[%clk 0:02:09]}  g4 {[%clk 0:01:44]} 18. Nfd2 {[%clk 0:02:08]}  Ng6 {[%clk 0:01:42]} 19. g3 {[%clk 0:02:06]}  f4 {[%clk 0:01:37]} 20. exf4 {[%clk 0:02:02]}  exf4 {[%clk 0:01:37]} 21. Bxg7 {[%clk 0:02:01]}  Nxg7 {[%clk 0:01:37]} 22. Ne4 {[%clk 0:01:54]}  b6 {[%clk 0:01:31]} 23. Nf6+ {[%clk 0:01:53]} 1-0


[Site "https://www.chess.com"]

[Event "Titled Tuesday Blitz October 25 Late 2022"]
[White "Mikhalsky, Vladimir"]
[Black "Culum, Sanjin"]
[WhiteFideId "14144352"]
[BlackFideId "14420937"]
[WhiteElo "2271"]
[BlackElo "2180"]
[Result "1-0"]
[Round "05"]
[TimeControl "180+1"]
[Date "2022.10.26"]
[WhiteClock "0:00:18"]
[BlackClock "0:00:05"]

1. e4 {[%clk 0:03:00]}  a6 {[%clk 0:02:49]} 2. d4 {[%clk 0:02:58]}  b5 {[%clk 0:02:50]} 3. a4 {[%clk 0:02:57]}  b4 {[%clk 0:02:50]} 4. c3 {[%clk 0:02:54]}  Bb7 {[%clk 0:02:50]} 5. d5 {[%clk 0:02:51]}  Nf6 {[%clk 0:02:46]} 6. cxb4 {[%clk 0:02:47]}  Nxe4 {[%clk 0:02:44]} 7. Nc3 {[%clk 0:02:44]}  Nf6 {[%clk 0:02:22]} 8. Bg5 {[%clk 0:02:42]}  e6 {[%clk 0:02:21]} 9. dxe6 {[%clk 0:02:28]}  dxe6 {[%clk 0:02:22]} 10. Qxd8+ {[%clk 0:02:26]}  Kxd8 {[%clk 0:02:19]} 11. O-O-O+ {[%clk 0:02:25]}  Ke8 {[%clk 0:02:18]} 12. b5 {[%clk 0:02:23]}  a5 {[%clk 0:01:57]} 13. Nf3 {[%clk 0:02:21]}  Nbd7 {[%clk 0:01:47]} 14. Bc4 {[%clk 0:02:19]}  Nb6 {[%clk 0:01:46]} 15. Bb3 {[%clk 0:02:19]}  Be7 {[%clk 0:01:44]} 16. Bf4 {[%clk 0:02:06]}  Rc8 {[%clk 0:01:31]} 17. Ne5 {[%clk 0:02:02]}  Nbd5 {[%clk 0:01:27]} 18. Nxd5 {[%clk 0:01:58]}  Nxd5 {[%clk 0:01:28]} 19. Bg3 {[%clk 0:01:52]}  Nb4 {[%clk 0:01:06]} 20. Rhe1 {[%clk 0:01:43]}  c6 {[%clk 0:01:00]} 21. Nxf7 {[%clk 0:01:33]}  cxb5+ {[%clk 0:00:50]} 22. Kb1 {[%clk 0:01:29]}  Kxf7 {[%clk 0:00:43]} 23. Bxe6+ {[%clk 0:01:11]}  Kf8 {[%clk 0:00:22]} 24. Bxc8 {[%clk 0:01:07]}  Bxc8 {[%clk 0:00:23]} 25. Re5 {[%clk 0:00:50]}  bxa4 {[%clk 0:00:16]} 26. Rxa5 {[%clk 0:00:49]}  Nc6 {[%clk 0:00:15]} 27. Ra8 {[%clk 0:00:47]}  Kf7 {[%clk 0:00:15]} 28. Ka1 {[%clk 0:00:42]}  a3 {[%clk 0:00:09]} 29. Rc1 {[%clk 0:00:33]}  axb2+ {[%clk 0:00:09]} 30. Kxb2 {[%clk 0:00:34]}  Bf6+ {[%clk 0:00:09]} 31. Ka3 {[%clk 0:00:34]}  Ne7 {[%clk 0:00:07]} 32. Bd6 {[%clk 0:00:31]}  Rd8 {[%clk 0:00:07]} 33. Bxe7 {[%clk 0:00:26]}  Bxe7+ {[%clk 0:00:07]} 34. Kb2 {[%clk 0:00:26]}  Rd2+ {[%clk 0:00:03]} 35. Rc2 {[%clk 0:00:25]}  Rxc2+ {[%clk 0:00:03]} 36. Kxc2 {[%clk 0:00:25]}  Bf5+ {[%clk 0:00:04]} 37. Kd2 {[%clk 0:00:25]}  Be4 {[%clk 0:00:04]} 38. Rh8 {[%clk 0:00:20]}  Bxg2 {[%clk 0:00:03]} 39. Rxh7 {[%clk 0:00:21]}  Bg5+ {[%clk 0:00:04]} 40. Ke2 {[%clk 0:00:20]}  Kg8 {[%clk 0:00:04]} 41. Rh5 {[%clk 0:00:19]}  Bf6 {[%clk 0:00:04]} 42. Ra5 {[%clk 0:00:19]}  Be4 {[%clk 0:00:04]} 43. f3 {[%clk 0:00:19]}  Bg6 {[%clk 0:00:04]} 44. Kf2 {[%clk 0:00:19]}  Kh7 {[%clk 0:00:05]} 45. Kg3 {[%clk 0:00:19]}  Bd4 {[%clk 0:00:05]} 46. f4 {[%clk 0:00:19]}  Kh6 {[%clk 0:00:04]} 47. f5 {[%clk 0:00:18]}  Bf7 {[%clk 0:00:04]} 48. Kf4 {[%clk 0:00:19]}  Bf6 {[%clk 0:00:04]} 49. Ra6 {[%clk 0:00:19]}  Kh5 {[%clk 0:00:04]} 50. Ra8 {[%clk 0:00:18]}  Bd5 {[%clk 0:00:05]} 51. Rh8# {[%clk 0:00:18]} 1-0


[Site "https://www.chess.com"]

[Event "Titled Tuesday Blitz October 25 Late 2022"]
[White "Omariev, Maksim"]
[Black "Rose, Felix"]
[WhiteFideId "4193423"]
[BlackFideId "5105722"]
[WhiteElo "2412"]
[BlackElo "2039"]
[Result "1-0"]
[Round "05"]
[TimeControl "180+1"]
[Date "2022.10.26"]
[WhiteClock "0:00:12"]
[BlackClock "0:00:27"]

1. g4 {[%clk 0:03:00]}  d5 {[%clk 0:02:51]} 2. Bg2 {[%clk 0:03:01]}  c6 {[%clk 0:02:51]} 3. h3 {[%clk 0:03:01]}  h5 {[%clk 0:02:50]} 4. g5 {[%clk 0:03:00]}  h4 {[%clk 0:02:51]} 5. d4 {[%clk 0:03:00]}  Nd7 {[%clk 0:02:49]} 6. c4 {[%clk 0:03:00]}  dxc4 {[%clk 0:02:49]} 7. Nc3 {[%clk 0:03:00]}  e6 {[%clk 0:02:46]} 8. e4 {[%clk 0:02:57]}  Ne7 {[%clk 0:02:41]} 9. Be3 {[%clk 0:02:57]}  Ng6 {[%clk 0:02:41]} 10. Nge2 {[%clk 0:02:55]}  e5 {[%clk 0:02:38]} 11. Qd2 {[%clk 0:02:52]}  exd4 {[%clk 0:02:33]} 12. Nxd4 {[%clk 0:02:53]}  Nde5 {[%clk 0:02:31]} 13. O-O-O {[%clk 0:02:53]}  Qa5 {[%clk 0:02:19]} 14. Kb1 {[%clk 0:02:53]}  Bb4 {[%clk 0:02:12]} 15. f4 {[%clk 0:02:53]}  Bxc3 {[%clk 0:02:11]} 16. bxc3 {[%clk 0:02:51]}  Nd3 {[%clk 0:02:10]} 17. e5 {[%clk 0:02:29]}  c5 {[%clk 0:01:58]} 18. Ne2 {[%clk 0:02:05]}  Bf5 {[%clk 0:01:44]} 19. Ka1 {[%clk 0:02:05]}  O-O-O {[%clk 0:01:35]} 20. Rb1 {[%clk 0:01:48]}  Rd7 {[%clk 0:01:21]} 21. Qc2 {[%clk 0:01:13]}  Re8 {[%clk 0:01:06]} 22. Rb2 {[%clk 0:00:51]}  Nxb2 {[%clk 0:00:56]} 23. Qxf5 {[%clk 0:00:51]}  Na4 {[%clk 0:00:48]} 24. Bxb7+ {[%clk 0:00:10]}  Kd8 {[%clk 0:00:42]} 25. Bc6 {[%clk 0:00:07]}  Rc7 {[%clk 0:00:21]} 26. Rd1+ {[%clk 0:00:06]}  Ke7 {[%clk 0:00:20]} 27. Bxe8 {[%clk 0:00:06]}  Kxe8 {[%clk 0:00:20]} 28. Qc2 {[%clk 0:00:05]}  Rb7 {[%clk 0:00:20]} 29. Rb1 {[%clk 0:00:04]}  Rxb1+ {[%clk 0:00:20]} 30. Kxb1 {[%clk 0:00:05]}  Qb6+ {[%clk 0:00:20]} 31. Ka1 {[%clk 0:00:05]}  Qc6 {[%clk 0:00:19]} 32. f5 {[%clk 0:00:03]}  Nxe5 {[%clk 0:00:19]} 33. Nf4 {[%clk 0:00:03]}  Qh1+ {[%clk 0:00:19]} 34. Qc1 {[%clk 0:00:03]}  Qxc1+ {[%clk 0:00:20]} 35. Bxc1 {[%clk 0:00:04]}  g6 {[%clk 0:00:19]} 36. f6 {[%clk 0:00:04]}  Nxc3 {[%clk 0:00:19]} 37. Bb2 {[%clk 0:00:04]}  Nd3 {[%clk 0:00:18]} 38. Nxd3 {[%clk 0:00:03]}  cxd3 {[%clk 0:00:18]} 39. Bxc3 {[%clk 0:00:04]}  c4 {[%clk 0:00:18]} 40. Kb2 {[%clk 0:00:04]}  Kd7 {[%clk 0:00:19]} 41. Ka3 {[%clk 0:00:05]}  Kc6 {[%clk 0:00:20]} 42. Kb4 {[%clk 0:00:05]}  Kd5 {[%clk 0:00:20]} 43. a4 {[%clk 0:00:05]}  Ke4 {[%clk 0:00:17]} 44. Kxc4 {[%clk 0:00:05]}  Ke3 {[%clk 0:00:18]} 45. Kd5 {[%clk 0:00:02]}  d2 {[%clk 0:00:18]} 46. Bxd2+ {[%clk 0:00:03]}  Kxd2 {[%clk 0:00:19]} 47. Kd6 {[%clk 0:00:04]}  a5 {[%clk 0:00:19]} 48. Ke7 {[%clk 0:00:04]}  Kc3 {[%clk 0:00:20]} 49. Kxf7 {[%clk 0:00:05]}  Kb4 {[%clk 0:00:21]} 50. Kxg6 {[%clk 0:00:06]}  Kxa4 {[%clk 0:00:22]} 51. f7 {[%clk 0:00:07]}  Kb3 {[%clk 0:00:23]} 52. f8=Q {[%clk 0:00:08]}  a4 {[%clk 0:00:24]} 53. Qf3+ {[%clk 0:00:07]}  Kb2 {[%clk 0:00:24]} 54. Qg4 {[%clk 0:00:07]}  a3 {[%clk 0:00:25]} 55. Qxh4 {[%clk 0:00:08]}  a2 {[%clk 0:00:26]} 56. Qf2+ {[%clk 0:00:08]}  Kb1 {[%clk 0:00:26]} 57. Qxa2+ {[%clk 0:00:09]}  Kxa2 {[%clk 0:00:27]} 58. h4 {[%clk 0:00:10]}  Kb3 {[%clk 0:00:27]} 59. h5 {[%clk 0:00:11]}  Kc4 {[%clk 0:00:27]} 60. h6 {[%clk 0:00:12]} 1-0


[Site "https://www.chess.com"]

[Event "Titled Tuesday Blitz October 25 Late 2022"]
[White "Ozdemir, Serhan Berat"]
[Black "Muhammad, Shahzeb"]
[WhiteFideId "6374611"]
[BlackFideId "7804806"]
[WhiteElo "2016"]
[BlackElo "2410"]
[Result "1-0"]
[Round "05"]
[TimeControl "180+1"]
[Date "2022.10.26"]
[WhiteClock "0:00:51"]
[BlackClock "0:00:05"]

1. e4 {[%clk 0:03:00]}  d5 {[%clk 0:02:58]} 2. exd5 {[%clk 0:03:00]}  Nf6 {[%clk 0:02:55]} 3. Nc3 {[%clk 0:03:01]}  Nxd5 {[%clk 0:02:55]} 4. Bc4 {[%clk 0:03:00]}  Nxc3 {[%clk 0:02:55]} 5. Qf3 {[%clk 0:02:59]}  e6 {[%clk 0:02:55]} 6. dxc3 {[%clk 0:02:59]}  Nc6 {[%clk 0:02:55]} 7. Bf4 {[%clk 0:02:43]}  Bd6 {[%clk 0:02:54]} 8. Rd1 {[%clk 0:02:32]}  O-O {[%clk 0:02:47]} 9. Ne2 {[%clk 0:02:24]}  Qh4 {[%clk 0:02:44]} 10. Qg3 {[%clk 0:01:41]}  Qxg3 {[%clk 0:02:25]} 11. hxg3 {[%clk 0:01:41]}  Ne5 {[%clk 0:02:11]} 12. Bb3 {[%clk 0:01:35]}  a5 {[%clk 0:02:05]} 13. a4 {[%clk 0:01:28]}  b6 {[%clk 0:02:02]} 14. Rh5 {[%clk 0:01:20]}  f5 {[%clk 0:01:45]} 15. Nd4 {[%clk 0:01:15]}  g6 {[%clk 0:01:20]} 16. Rh1 {[%clk 0:01:12]}  Nf7 {[%clk 0:00:57]} 17. Nb5 {[%clk 0:00:59]}  Rd8 {[%clk 0:00:23]} 18. Nxc7 {[%clk 0:00:49]}  Bxc7 {[%clk 0:00:06]} 19. Bxc7 {[%clk 0:00:50]}  Rxd1+ {[%clk 0:00:05]} 20. Kxd1 {[%clk 0:00:51]} 1-0


[Site "https://www.chess.com"]

[Event "Titled Tuesday Blitz October 25 Late 2022"]
[White "Ozen, Bahadir"]
[Black "Sorokin, Aleksey"]
[WhiteFideId "6337058"]
[BlackFideId "24176460"]
[WhiteElo "2503"]
[BlackElo "2476"]
[Result "1/2-1/2"]
[Round "05"]
[TimeControl "180+1"]
[Date "2022.10.26"]
[WhiteClock "0:00:27"]
[BlackClock "0:00:21"]

1. g3 {[%clk 0:03:00]}  Nf6 {[%clk 0:02:51]} 2. Bg2 {[%clk 0:03:00]}  d5 {[%clk 0:02:50]} 3. d3 {[%clk 0:02:59]}  c5 {[%clk 0:02:50]} 4. Nf3 {[%clk 0:02:57]}  g6 {[%clk 0:02:50]} 5. O-O {[%clk 0:02:57]}  Bg7 {[%clk 0:02:50]} 6. c3 {[%clk 0:02:56]}  Nc6 {[%clk 0:02:49]} 7. Nbd2 {[%clk 0:02:48]}  O-O {[%clk 0:02:49]} 8. a3 {[%clk 0:02:42]}  a5 {[%clk 0:02:48]} 9. a4 {[%clk 0:02:41]}  b6 {[%clk 0:02:48]} 10. Qc2 {[%clk 0:02:38]}  Ba6 {[%clk 0:02:44]} 11. Rd1 {[%clk 0:02:24]}  Rc8 {[%clk 0:02:44]} 12. e4 {[%clk 0:02:22]}  e6 {[%clk 0:02:37]} 13. Bf1 {[%clk 0:02:16]}  Qc7 {[%clk 0:02:27]} 14. exd5 {[%clk 0:02:06]}  exd5 {[%clk 0:02:23]} 15. Bh3 {[%clk 0:02:06]}  Rce8 {[%clk 0:02:21]} 16. Nf1 {[%clk 0:02:06]}  d4 {[%clk 0:02:16]} 17. Bf4 {[%clk 0:01:59]}  Qb7 {[%clk 0:02:10]} 18. Bd6 {[%clk 0:01:58]}  dxc3 {[%clk 0:02:02]} 19. bxc3 {[%clk 0:01:46]}  Ne7 {[%clk 0:02:01]} 20. Bg2 {[%clk 0:01:44]}  Qd7 {[%clk 0:02:01]} 21. Bxe7 {[%clk 0:01:39]}  Rxe7 {[%clk 0:02:00]} 22. d4 {[%clk 0:01:36]}  cxd4 {[%clk 0:01:55]} 23. Nxd4 {[%clk 0:01:36]}  Qc7 {[%clk 0:01:52]} 24. Rab1 {[%clk 0:01:30]}  Ng4 {[%clk 0:01:42]} 25. Qb3 {[%clk 0:01:14]}  Bxf1 {[%clk 0:01:22]} 26. Rxf1 {[%clk 0:01:10]}  h5 {[%clk 0:01:17]} 27. Qxb6 {[%clk 0:01:03]}  Qxc3 {[%clk 0:01:15]} 28. Nf3 {[%clk 0:01:02]}  Re2 {[%clk 0:01:10]} 29. Qb3 {[%clk 0:00:57]}  Qxb3 {[%clk 0:01:06]} 30. Rxb3 {[%clk 0:00:57]}  Ra2 {[%clk 0:01:04]} 31. h3 {[%clk 0:00:57]}  Ne5 {[%clk 0:00:59]} 32. Nxe5 {[%clk 0:00:56]}  Bxe5 {[%clk 0:01:00]} 33. Bc6 {[%clk 0:00:52]}  Rc8 {[%clk 0:00:58]} 34. Bb5 {[%clk 0:00:50]}  Rcc2 {[%clk 0:00:53]} 35. Rf3 {[%clk 0:00:49]}  Kg7 {[%clk 0:00:50]} 36. h4 {[%clk 0:00:46]}  Bd4 {[%clk 0:00:48]} 37. Kg2 {[%clk 0:00:45]}  Rd2 {[%clk 0:00:48]} 38. Rf4 {[%clk 0:00:45]}  Rab2 {[%clk 0:00:47]} 39. Rf3 {[%clk 0:00:41]}  f5 {[%clk 0:00:45]} 40. Kg1 {[%clk 0:00:39]}  Kf6 {[%clk 0:00:45]} 41. Kg2 {[%clk 0:00:39]}  Ke5 {[%clk 0:00:45]} 42. Be8 {[%clk 0:00:37]}  Kf6 {[%clk 0:00:43]} 43. Bb5 {[%clk 0:00:37]}  Bc5 {[%clk 0:00:40]} 44. Be8 {[%clk 0:00:37]}  Re2 {[%clk 0:00:28]} 45. Bb5 {[%clk 0:00:37]}  Rec2 {[%clk 0:00:28]} 46. Be8 {[%clk 0:00:36]}  Bd4 {[%clk 0:00:28]} 47. Bb5 {[%clk 0:00:36]}  Rc3 {[%clk 0:00:28]} 48. Rxc3 {[%clk 0:00:31]}  Bxc3 {[%clk 0:00:29]} 49. Rd1 {[%clk 0:00:30]}  Ke5 {[%clk 0:00:27]} 50. Rd3 {[%clk 0:00:29]}  Bd4 {[%clk 0:00:27]} 51. Rf3 {[%clk 0:00:29]}  Kf6 {[%clk 0:00:21]} 52. Rf4 {[%clk 0:00:29]}  Bc5 {[%clk 0:00:20]} 53. Rf3 {[%clk 0:00:29]}  Bd4 {[%clk 0:00:19]} 54. Rf4 {[%clk 0:00:29]}  Rd2 {[%clk 0:00:19]} 55. Rf3 {[%clk 0:00:29]}  Bc5 {[%clk 0:00:19]} 56. Rf4 {[%clk 0:00:28]}  Bd6 {[%clk 0:00:19]} 57. Rf3 {[%clk 0:00:28]}  g5 {[%clk 0:00:19]} 58. hxg5+ {[%clk 0:00:28]}  Kxg5 {[%clk 0:00:20]} 59. Rd3 {[%clk 0:00:27]}  Rxd3 {[%clk 0:00:21]} 60. Bxd3 {[%clk 0:00:28]}  f4 {[%clk 0:00:21]} 61. Be2 {[%clk 0:00:27]}  fxg3 {[%clk 0:00:21]} 62. fxg3 {[%clk 0:00:27]} 1/2-1/2


[Site "https://www.chess.com"]